Cogmind - Beta 16 @@@ ROGUE MODE // 2026.01.07 @ 22:21:31 Player: Tom Fryers Result: Destroyed by G-34 Mercenary with Small Laser Performance ------------- Evolutions (1) 500 Regions Visited (2) 400 Robots Destroyed (15) 75 Value Destroyed (402) 402 Prototype IDs (0) 0 Alien Tech Used (0) 0 Bonus (0) 0 TOTAL SCORE: 1377 Bonus ------- None Cogmind --------- Core Integrity 0/400 Matter 300/300 Energy 100/100 System Corruption 0% Temperature Cool (6) Movement Core (1350) Ox26 Location -9/Materials Parts ------- > --- POWER (1) -------- (None) > --- PROPULSION (4) --- (None) > --- UTILITY (2) ------ Huge Storage Unit Structural Scanner > --- WEAPON (2) ------- (None) > --- INVENTORY (25) --- Light Ion Engine Aluminum Leg Aluminum Leg Improved Heat Sink Visual Processing Unit Signal Interpreter Improved Terrain Scanner Targeting Computer Improved Targeting Computer Propulsion Shielding Light Armor Plating Peak State ------------ > --- POWER ------------ Ion Engine > --- PROPULSION ------- Light Treads Light Treads > --- UTILITY ---------- Medium Storage Unit Structural Scanner > --- WEAPON ----------- EM Pulse Gun Assault Rifle > --- INVENTORY -------- Light Ion Engine Aluminum Leg Aluminum Leg Improved Heat Sink Small Storage Unit Terrain Scanner Targeting Computer Light Assault Rifle [Rating: 8] Favorites ----------- Power Ion Engine Engine Ion Engine Propulsion Light Treads Treads Light Treads Utility Structural Scanner Device Structural Scanner Storage Huge Storage Unit Weapon Assault Rifle Energy Gun EM Pulse Gun Ballistic Gun Assault Rifle Build | -11 -10 -9 ------- Run | Yrd Mat Mat Slots Evolved 2 | . . 2 Power . | . . . Propulsion 2 | . . 2 Utility . | . . . Weapon . | . . . Parts Attached 11 | 6 5 . Power 1 | 1 . . Engine 1 | 1 . . Core . | . . . Reactor . | . . . Propulsion 3 | 2 1 . Treads 3 | 2 1 . Leg . | . . . Wheel . | . . . Hover . | . . . Flight . | . . . Utility 4 | 1 3 . Device 1 | . 1 . Storage 3 | 1 2 . Processor . | . . . Hackware . | . . . Protection . | . . . Artifact . | . . . Weapon 3 | 2 1 . Energy Gun 1 | 1 . . Energy Cannon . | . . . Ballistic Gun 2 | 1 1 . Ballistic Cannon . | . . . Launcher . | . . . Special Weapon . | . . . Impact Weapon . | . . . Slashing Weapon . | . . . Piercing Weapon . | . . . Special Melee Weapon . | . . . Unidentified Prototypes . | . . . Parts Lost 6 | . 1 5 Power 1 | . . 1 Propulsion 2 | . . 2 Utility . | . . . Weapon 3 | . 1 2 Highest Loss Streak 5 | . 1 5 To Critical Strikes . | . . . Average Backups 8 | 4 8 10 Power . | . 1 1 Propulsion 1 | 1 2 2 Utility 4 | . 4 7 Weapon . | 1 . . Tool/Special . | . . . Unused Backups 12 | . 1 11 Power 1 | . . 1 Propulsion 2 | . . 2 Utility 9 | . 1 8 Weapon . | . . . Tool/Special . | . . . Average Slot Usage (%) 90 | . 97 70 Engine 12 | . 14 9 Treads 25 | . 28 19 Device 11 | . 11 11 Storage 13 | . 14 11 Energy Gun 7 | . 10 . Ballistic Gun 17 | . 17 19 Peak Build Rating 8 | 6 8 8 Average Rating 7 | 3 7 7 On Entrance 4 | . 6 8 Avg Prop Armor Cover (%) . | . . . Naked Turns . | . . . Heaviest Build 90 | 14 90 89 Greatest Support 40 | 40 40 40 Greatest Overweight (x) 26 | 3 2 26 Average Overweight (x) . | . . 2 Largest Inventory Capacity 25 | 8 25 25 Average Capacity 15 | 7 13 25 Most Carried 11 | 8 10 11 Average Carried 8 | 4 8 10 Final Capacity 25 | 8 25 25 Final Carried 11 | 4 10 11 Class Distribution -------------------- 100% | Mutant Dominant Class ---------------- Mutant | -10/Materials Mutant | -9/Materials Resources | -11 -10 -9 ----------- Run | Yrd Mat Mat Matter Collected 464 | 231 109 124 Remotely . | . . . Salvage Created 486 | . 187 299 Parts 31 | . 16 15 Haulers Intercepted . | . . . Recyclers Shooed . | . . . Parts Field Recycled . | . . . Retrieved Matter . | . . . Parts Self-Destructed . | . . . Prevented . | . . . Parts Restored . | . . . Kills | -11 -10 -9 ------- Run | Yrd Mat Mat Combat Hostiles Destroyed 14 | . 6 8 Guns 14 | . 6 8 Classes Destroyed 4 | . 3 1 Tunneler 1 | . 1 . Swarmer 4 | . 3 1 Grunt 9 | . 3 6 Brawler 1 | . . 1 Best Kill Streak 5 | . 4 5 Combat Bots Only 5 | . 4 5 Max Kills in Single Turn 1 | . 1 1 Gunslinging . | . . . Exploded . | . . . Melee . | . . . Uniques/NPCs Destroyed . | . . . Combat | -11 -10 -9 -------- Run | Yrd Mat Mat Hostile Shots Fired 143 | . 23 120 Missed 36 | . 8 28 Hits 107 | . 15 92 Melee 1 | . . 1 Projectile 106 | . 15 91 Critical Strikes 1 | . . 1 Damage Taken 1079 | . 167 912 Core 436 | . 27 409 Absorbed by Shields . | . . . Core Remaining (%) 94 | 100 89 . Volleys Fired 48 | . 14 34 Largest 2 | . 2 2 Hottest 60 | . 60 40 Shots Fired 91 | . 28 63 Gun 91 | . 28 63 Cannon . | . . . Launcher . | . . . Special . | . . . Kinetic 77 | . 14 63 Thermal . | . . . Explosive . | . . . Electromagnetic 14 | . 14 . Robot Hit Streak 8 | . 8 6 Robot Miss Streak 6 | . 1 6 Penetration Max . | . . . Secondary Targets 4 | . . 4 Max Gunslinging Chain 1 | . . 1 Shots Hit Robots 50 | . 16 34 Core Hits 25 | . 10 15 Critical Kills . | . . . Critical Parts Destroyed . | . . . Critical Strikes . | . . . Melee Attacks . | . . . Impact . | . . . Slashing . | . . . Piercing . | . . . Sneak Attacks . | . . . Combat Hostiles . | . . . Follow-up Attacks . | . . . Damage Inflicted 624 | . 278 346 Guns 574 | . 228 346 Cannons . | . . . Explosions 42 | . 42 . Melee . | . . . Ramming 8 | . 8 . Kinetic 442 | . 96 346 Thermal 42 | . 42 . Explosive . | . . . Electromagnetic 132 | . 132 . Impact . | . . . Slashing . | . . . Piercing . | . . . Highest Corruption . | . . . Average Corruption . | . . . Corruption Purged . | . . . Corruption Blocked . | . . . Overload Shots . | . . . Overflow Damage . | . . . Projectiles . | . . . Explosions . | . . . Melee . | . . . Knockbacks . | . . . Impact . | . . . Kinetic . | . . . Secondary . | . . . Self-Inflicted Damage . | . . . Shots . | . . . Rammed 2 | . 1 1 Targets Rammed 2 | . 1 1 Kicked . | . . . Crushed . | . . . Highest Temperature 12 | . 12 9 Average Temperature 5 | . 8 3 Received Heat Transfer 378 | . 36 342 Siege Activations . | . . . Martial Activations . | . . . Shielding Activations . | . . . Robots Disrupted . | . . . Combat Hostiles . | . . . Robots Corrupted . | . . . Combat Hostiles . | . . . Parts Fried . | . . . Impact Corruptions . | . . . Robots Melted . | . . . Combat Hostiles . | . . . Parts Melted . | . . . Heat Transferred 50 | . 50 . Parts Sabotaged . | . . . Parts Stolen . | . . . Parts Stripped . | . . . Power Chain Reactions 1 | . 1 . Alert | -11 -10 -9 ------- Run | Yrd Mat Mat Maximum Alert Level . | . . . Low Security (%) 100 | 100 100 100 Level 1 . | . . . Level 2 . | . . . Level 3 . | . . . Level 4 . | . . . Level 5 . | . . . High Security . | . . . Max Security . | . . . Peak Influence 150 | . 93 150 Initial . | . . . Average 21 | . 15 44 Influence Increases 366 | . 162 204 Destroy 0b10 Robot/C 280 | . 120 160 Destroy 0b10 Robot/NC 5 | . 5 . Destroy Leader 70 | . 30 40 Successful Hack 8 | . 4 4 Destroy Structure 3 | . 3 . Influence Decreases 286 | . 162 124 Time Decay 175 | . 101 74 Lost Part 60 | . 10 50 Purge Threat 51 | . 51 . Squads Dispatched 3 | . 1 2 Investigation 1 | . . 1 Extermination . | . . . Reinforcement 2 | . 1 1 Assault . | . . . Garrison . | . . . Intercept . | . . . Searches Triggered . | . . . Construction Impeded . | . . . Haulers Reinforced . | . . . Active Scanning Responses . | . . . Cargo Convoy Interrupts . | . . . Stealth | -11 -10 -9 --------- Run | Yrd Mat Mat Distress Signals 3 | . 1 2 Communications Jammed . | . . . Distress Signals . | . . . Times Spotted 23 | . 8 15 Peak Tracking Total 7 | . 3 7 Tactical Retreats . | . . . Traps | -11 -10 -9 ------- Run | Yrd Mat Mat Traps Triggered 1 | . 1 . Indirectly . | . . . Trap Hack Attempts . | . . . Triggered . | . . . Disarmed . | . . . Reprogrammed . | . . . Reused . | . . . Traps Extracted . | . . . Installed . | . . . Triggered . | . . . Machines | -11 -10 -9 ---------- Run | Yrd Mat Mat Machines Disabled . | . . . Max in Single Turn . | . . . Machines Repaired . | . . . Machines Dismantled . | . . . Machines Sabotaged . | . . . Overloaded Fab Kills . | . . . Hacking | -11 -10 -9 --------- Run | Yrd Mat Mat Machines Accessed 9 | . 8 1 Terminals 6 | . 6 . Fabricators . | . . . Repair Stations . | . . . Recycling Units 2 | . 2 . Scanalyzers 1 | . . 1 Garrison Access . | . . . Total Hacks 33 | . 28 5 Successful 11 | . 8 3 Failed 22 | . 20 2 Catastrophic 2 | . 2 . Database Lockouts . | . . . Manual . | . . . Terminals 23 | . 23 . Fabricators . | . . . Repair Stations . | . . . Recycling Units 5 | . 5 . Scanalyzers 5 | . . 5 Garrison Access . | . . . Terminal Hacks 6 | . 6 . Emergency Access Points 1 | . 1 . Alert Level 2 | . 2 . Unreport Threat 1 | . 1 . Locate Traps 1 | . 1 . Dispatch Records 1 | . 1 . Fabricator Hacks . | . . . Repair Station Hacks . | . . . Recycling Unit Hacks 2 | . 2 . Retrieve Components 2 | . 2 . Scanalyzer 3 | . . 3 Insert Component 1 | . . 1 Analyze 1 | . . 1 Retrieve Study 1 | . . 1 Garrison Access Hacks . | . . . Unauthorized Hacks . | . . . Terminals . | . . . Fabricators . | . . . Repair Stations . | . . . Recycling Units . | . . . Scanalyzers . | . . . Garrison Access . | . . . Data Cores Recovered . | . . . Used . | . . . Hacking Detections 8 | . 7 1 Full Trace Events 2 | . 1 1 Feedback Events . | . . . Feedback Blocked . | . . . Robot Schematics Acquired . | . . . Robots Built . | . . . Authchips . | . . . Time . | . . . Total Robot Build Rating . | . . . Part Schematics Acquired 1 | . . 1 Parts Built . | . . . Authchips . | . . . Time . | . . . Total Part Build Rating . | . . . Part Studies Acquired 1 | . . 1 Parts Repaired . | . . . Time . | . . . Parts Recycled . | . . . Recycled Matter . | . . . Retrieved Matter . | . . . Retrieved Components 15 | . 15 . Parts Scanalyzed 1 | . . 1 Part Schematics Acquired 1 | . . 1 Parts Damaged . | . . . Bothacking | -11 -10 -9 ------------ Run | Yrd Mat Mat Used RIF Installer . | . . . Robots Hacked . | . . . Non-combat . | . . . Combat . | . . . Robot Hacks Applied . | . . . Relay Couplers Released . | . . . Fabnet Peak Effective % . | . . . Robots Rewired . | . . . Allies Hacked . | . . . Hacks Repelled . | . . . Allies | -11 -10 -9 -------- Run | Yrd Mat Mat Total Allies . | . . . Largest Group . | . . . Highest-Rated Group . | . . . Highest-Rated Ally . | . . . Total Orders . | . . . Ally Attacks . | . . . Total Damage . | . . . Kills . | . . . Allies Corrupted . | . . . Allies Melted . | . . . Intel | -11 -10 -9 ------- Run | Yrd Mat Mat Active Infowar (turns) 692 | . 492 200 Structural 692 | . 492 200 Robot Analysis Total . | . . . Derelict Logs Recovered . | . . . Drone Launches . | . . . Drone Recoveries . | . . . Exploration | -11 -10 -9 ------------- Run | Yrd Mat Mat Turns Passed 875 | 75 593 207 Spaces Moved 366 | 43 286 37 Core 25 | 24 . 1 Treads 341 | 19 286 36 Legs . | . . . Wheels . | . . . Hover . | . . . Flight . | . . . Fastest Speed 50 | 50 160 240 Average Speed 191 | 141 186 291 Slowest Speed 1350 | 200 320 1350 Overloaded Moves . | . . . Propulsion Burnouts . | . . . Robots Hopped . | . . . Potential Cave-ins . | . . . Cave-ins Triggered . | . . . Exploration Rate (%) 23 | 4 61 5 Regions Visited 2 Branch Regions . Pre-discovered Areas . | . . . Known Exits Taken . | . . . Unknown Exits Taken 2 | 1 1 . Scrap Searched . | . . . Spaces Dug . | . . . Terrain Destroyed 2 | . 2 . Melee . | . . . Projectile . | . . . AOE 2 | . 2 . Terrain Rammed . | . . . Walls Destroyed . | . . . Machines Disabled . | . . . Actions | -11 -10 -9 --------- Run | Yrd Mat Mat Total 451 | 57 321 73 Wait 2 | . 2 . Move 364 | 42 285 37 Hop . | . . . Pick Up 20 | 9 10 1 Fast Attach 1 | 1 . . Attach 7 | 5 2 . Detach . | . . . Swap 3 | . 3 . Drop 4 | . 4 . Fire 48 | . 14 34 Melee . | . . . Ram 1 | . . 1 Kick . | . . . Crush 1 | . 1 . Escape Stasis . | . . . Rewire . | . . . Trap . | . . . Miscellaneous . | . . . Route ------- -11/Scrapyard -10/Materials (discovered 3 exits: *Mat x2 / [*Min]) -9/Materials History --------- Turn | Location | Event 14 | -11/Scrapyard | Discovered new exit (range 15) 76 | -11/Scrapyard | Entered Materials 77 | -10/Materials | Met a group of wandering Federalists 112 | -10/Materials | Discovered new exit (range 16) 286 | -10/Materials | Discovered new exit (range 10) 300 | -10/Materials | Build established: Mutant 501 | -10/Materials | Discovered new exit (range 10) 669 | -10/Materials | Entered another Materials area 669 | -9/Materials | Evolved 2 slots: Propulsion x2 861 | -9/Materials | Core integrity fell below 50% 872 | -9/Materials | Core integrity fell below 20% 876 | -9/Materials | Destroyed by G-34 Mercenary with Small Laser Last Messages --------------- Switching to secondary target: G-34 Mercenary. Acquired 4 matter. K-01 Serf collects debris. Acquired 4 matter. Assault Rifle destroyed. Acquired 1 matter. K-01 Serf collects debris. Acquired 1 matter. K-01 Serf collects debris. Lgt. Treads+ destroyed. Acquired 1 matter. Lgt. Treads+ destroyed. Lgt. Assault Rifle destroyed. Ion Engine destroyed. K-01 Serf collects debris. R-06 Scavenger collects Heat Sink. K-01 Serf collects debris. Slammed into K-01 Serf. Structural Scanner broken. Destabilizing: Short circuit. Map ----- +----------------------------------------------------+ | ????????????????????????????????????????????????? | | ????????????????????????????????????????????????? | | ????????????????????????????????????????????????? | | ????????????????????????????????????????????????? | | ????????????????????????????????????????????????? | | ????????????????????????????????????????????????? | | ????????????????????????????????????????????????? | | ????????????????????????????????????????????????? | | ????????????????????????????????????????????????? | | ????????????????????????????????????????????????? | | ????????????????????????????????????????????????? | | ??????????????????????## ???????????????????????? | | ??????????????????????## ???????????????????????? | | ??????????????????????## ???????????????????????? | | ??????????????????????## ???????????????????????? | | ??????????????????????## ???????????????????????? | | ??????????????????????## ???????????????????????? | | ??????????????????????##k???????????????????????? | | ??????????????????????##%???????????????????????? | | ??????????????##########g#############??????????? | | ???????????? #########%#############??????????? | | ??????????? s ##??????????? | | ????????????T % [s ##??????????? | | ??????????? *g= ######??????? | | ?????????????????########g######+#########??????? | | ?????????????????##### !@ # ##??????? | | ???????????????????? # """ # "" ##??????? | | ???????????????????? # """ # ""S ##??????? | | ???????????????????? # """ # "" ##??????? | | ???????????????????? # # """ ##??????? | | ????????????????????"# """ # """ ##??????? | | ????????????????????"# """ # """ ! ##??????? | | ????????????????????"# """ # ##??????? | | ???????????????????? # ############??????? | | ????????????????????"########### ###??????? | | ????????????????????"###########????????????????? | | ????????????????????????????????????????????????? | | ????????????????????????????????????????????????? | | ????????????????????????????????????????????????? | | ????????????????????????????????????????????????? | | ????????????????????????????????????????????????? | | ????????????????????????????????????????????????? | | ????????????????????????????????????????????????? | | ????????????????????????????????????????????????? | | ????????????????????????????????????????????????? | | ????????????????????????????????????????????????? | | ????????????????????????????????????????????????? | | ????????????????????????????????????????????????? | | ????????????????????????????????????????????????? | | ????????????????????????????????????????????????? | +----------------------------------------------------+ Best States ------------- Heat Dissipation 28 Energy Generation 10 Energy Capacity 250 Matter Stores 300 Matter Capacity 300 Sight Range 16 Terrain Scan Density 10 Evasion (%) 40 Recoil Reduction 2 Item Schematics ----------------- Lgt. Armor Plating | -9/Materials | Scanalyzed Robot Schematics ------------------ None Fabricated ------------ Nothing Repaired ---------- Nothing Studied --------- Lgt. Treads | -9/Materials | Hacked Alien Tech Used ----------------- None Achievements -------------- Everything Is Under Control Challenges ------------ None Game ------ Seed PlatingChainSuperbattery Manual? 0 Play Time 00:17:35 Cumulative 4.6 hours Start 2026.01.07 @ 22:06:14 End 2026.01.07 @ 22:21:31 Sessions 1 Manual Loads 0 Difficulty Rogue Special Mode None Game No. 6 Rogue 6 Adventurer 0 Explorer 0 Win Type - Total 0 Types 0/0/0/0/0/0/0/0/0/0 Lore% 1 Gallery% 7 Achievement% 9 Wizard Run 0 Options --------- Layout 1 ASCII 1 Keyboard 0 Movement Mouse Keybinds 0 Fullscreen 1 Font 48/Terminus++ Map View 50x35 Zoom Use 0% Tactical HUD 0 Map Filters NONE Filters NONE Steam 1 RUN: 52d33e79-ac2e-4703-8fba-62e8ec1c5a31